fUSD/lending_fUSD_20260227
["ID","MTS","AMOUNT","RATE_DAILY","PERIOD"]
[406759379,1772164238270,-500.0,0.000103,2]
[406759380,1772164238280,-500.0,0.000103,2]
[406759381,1772164238289,-500.0,0.000103,2]
[406759382,1772164238299,-500.0,0.000103,2]
[406759383,1772164238308,-604.70147535,0.000103,2]
[406759384,1772164238318,-500.0,0.000103,2]
[406759385,1772164238327,-500.0,0.000103,2]
[406759386,1772164238336,-608.03658136,0.000103,2]
[406759387,1772164238346,-500.0,0.000103,2]
[406759388,1772164238355,-543.74573523,0.000103,2]
[406759389,1772164238364,-500.0,0.000103,2]
[406759390,1772164238374,-500.0,0.000103,2]
[406759391,1772164238383,-500.0,0.000103,2]
[406759392,1772164238392,-500.0,0.000103,2]
[406759393,1772164238402,-500.0,0.000103,2]
[406759394,1772164238411,-500.0,0.000103,2]
[406759395,1772164238420,-500.0,0.000103,2]
[406759396,1772164238431,-869.88788903,0.000103,2]
[406759397,1772164238440,-500.0,0.000103,2]
[406759398,1772164238450,-500.0,0.000103,2]
[406759399,1772164238460,-500.0,0.000103,2]
[406759400,1772164238470,-500.0,0.000103,2]
[406759401,1772164238479,-543.74573523,0.000103,2]
[406759402,1772164238488,-1462.1,0.00010435,2]
[406759403,1772164238498,-160.7654888,0.00010548,2]
[406759404,1772164238508,-207.74,0.00010588,2]
[406759405,1772164238517,-1462.1,0.00010709,2]
[406759406,1772164238525,-504.03602982,0.00010829,2]
[406759407,1772164238534,-500.0,0.00010829,2]
[406759408,1772164238544,-500.0,0.00010829,2]
[406759409,1772164238553,-500.44493278,0.00010829,2]
[406759410,1772164238562,-500.0,0.00010829,2]
[406759411,1772164238572,-500.0,0.00010829,2]
[406759412,1772164238581,-500.0,0.00010829,2]
[406759413,1772164238590,-500.0,0.00010829,2]
[406759414,1772164238599,-163.76224101,0.00010829,2]
[406759415,1772164238609,-500.0,0.00010829,2]
[406759416,1772164238618,-590.44665858,0.00010829,2]
[406759417,1772164238628,-501.39565061,0.00010829,2]
[406759418,1772164238637,-500.0,0.00010829,2]
[406759419,1772164238647,-1131.98391739,0.00010829,2]
[406759420,1772164238656,-166.66,0.00010959,2]
[406759421,1772164238665,-2383.69,0.00010959,2]
[406759422,1772164238675,-150.0,0.0001096,2]
[406759423,1772164238685,-150.0,0.00010961,2]
[406759424,1772164238696,-150.0,0.00010962,2]
[406759425,1772164238708,-150.0,0.00010963,2]
[406759426,1772164238718,-150.0,0.00010964,2]
[406759427,1772164238728,-150.0,0.00010965,2]
[406759428,1772164238737,-150.0,0.00010966,2]
[406759429,1772164238746,-150.0,0.00010967,2]
[406759430,1772164238755,-150.0,0.00010968,2]
[406759431,1772164238764,-150.0,0.00010969,2]
[406759432,1772164238774,-150.0,0.0001097,2]
[406759433,1772164238783,-150.0,0.00010971,2]
[406759434,1772164238792,-199.9999,0.00010972,2]
[406759435,1772164238802,-1462.1,0.00010983,2]
[406759436,1772164238811,-166.66,0.00011068,2]
[406759437,1772164238821,-166.66,0.00011178,2]
[406759438,1772164238830,-1462.1,0.00011257,2]
[406759439,1772164238841,-166.66,0.00011288,2]
[406759440,1772164238850,-1000.0,0.00011377,2]
[406759441,1772164238859,-1000.0,0.00011377,2]
[406759442,1772164238868,-1000.0,0.00011377,2]
[406759443,1772164238878,-1000.0,0.00011377,2]
[406759444,1772164238887,-502.09548261,0.00011377,2]
[406759445,1772164238897,-1000.0,0.00011377,2]
[406759446,1772164238907,-500.0,0.00011377,2]
[406759447,1772164238916,-166.66,0.00011397,2]
[406759448,1772164238925,-166.66,0.00011507,2]
[406759449,1772164238935,-1462.1,0.00011531,2]
[406759450,1772164238944,-2220.800171,0.00011785,2]
[406759451,1772164238953,-1462.1,0.00011805,2]
[406759452,1772164238963,-1030.89081199,0.00011924,2]
[406759453,1772164238972,-500.0,0.00011924,2]
[406759454,1772164238982,-501.85175183,0.00011924,2]
[406759455,1772164238991,-447.624978,0.00011942,2]
[406759456,1772164239000,-1462.1,0.00012079,2]
[406759457,1772164239009,-1462.1449579,0.00012353,2]
[406759458,1772164239019,-10182.046737,0.00012963,2]
[406759459,1772164239028,-500.0,0.0001312,2]
[406759460,1772164239038,-501.78946227,0.0001312,2]
[406759461,1772164239047,-500.0,0.0001312,2]
[406759462,1772164239057,-500.0,0.0001312,2]
[406759463,1772164239066,-500.0,0.0001312,2]
[406759464,1772164239075,-500.0,0.0001312,2]
[406759465,1772164239084,-500.0,0.0001312,2]
[406759466,1772164239093,-500.0,0.0001312,2]
[406759467,1772164239102,-500.0,0.0001312,2]
[406759468,1772164239112,-500.0,0.0001312,2]
[406759469,1772164239121,-500.0,0.0001312,2]
[406759470,1772164239131,-500.0,0.0001312,2]
[406759471,1772164239141,-500.0,0.0001312,2]
[406759472,1772164239151,-500.0,0.0001312,2]
[406759473,1772164239161,-500.0,0.0001312,2]
[406759474,1772164239170,-500.0,0.0001312,2]
[406759475,1772164239181,-500.0,0.0001312,2]
[406759476,1772164239190,-500.0,0.0001312,2]
[406759477,1772164239199,-500.0,0.0001312,2]
[406759478,1772164239208,-500.0,0.0001312,2]
[406759479,1772164239218,-500.0,0.0001312,2]
[406759480,1772164239230,-500.0,0.0001312,2]
[406759481,1772164239239,-500.0,0.0001312,2]
[406759482,1772164239249,-500.0,0.0001312,2]
[406759483,1772164239258,-500.0,0.0001312,2]
[406759484,1772164239269,-500.0,0.0001312,2]
[406759485,1772164239278,-500.0,0.0001312,2]
[406759486,1772164239288,-500.0,0.0001312,2]
[406759487,1772164239298,-500.0,0.0001312,2]
[406759488,1772164239307,-500.0,0.0001312,2]
[406759489,1772164239317,-500.0,0.0001312,2]
[406759490,1772164239328,-500.0,0.0001312,2]
[406759492,1772164239337,-500.0,0.0001312,2]
[406759493,1772164239346,-500.0,0.0001312,2]
[406759494,1772164239355,-500.0,0.0001312,2]
[406759495,1772164239364,-500.0,0.0001312,2]
[406759496,1772164239373,-500.0,0.0001312,2]
[406759497,1772164239382,-563.07260655,0.0001312,2]
[406759498,1772164239391,-500.0,0.0001312,2]
[406759499,1772164239400,-500.0,0.0001312,2]
[406759500,1772164239409,-500.0,0.0001312,2]
[406759501,1772164239419,-500.0,0.0001312,2]
[406759502,1772164239428,-500.0,0.0001312,2]
[406759503,1772164239438,-500.0,0.0001312,2]
[406759504,1772164239448,-500.0,0.0001312,2]
[406759505,1772164239458,-500.0,0.0001312,2]
[406759506,1772164239467,-500.0,0.0001312,2]
[406759507,1772164239476,-500.0,0.0001312,2]
[406759508,1772164239486,-500.0,0.0001312,2]
[406759509,1772164239495,-500.0,0.0001312,2]
[406759510,1772164239505,-500.0,0.0001312,2]
[406759511,1772164239514,-500.0,0.0001312,2]
[406759512,1772164239524,-500.0,0.0001312,2]
[406759513,1772164239533,-500.0,0.0001312,2]
[406759514,1772164239542,-500.0,0.0001312,2]
[406759516,1772164239553,-500.0,0.0001312,2]
[406759518,1772164239563,-500.0,0.0001312,2]
[406759519,1772164239573,-500.0,0.0001312,2]
[406759520,1772164239583,-500.0,0.0001312,2]
[406759521,1772164239593,-500.0,0.0001312,2]
[406759522,1772164239603,-500.0,0.0001312,2]
[406759523,1772164239613,-500.0,0.0001312,2]
[406759524,1772164239623,-500.0,0.0001312,2]
[406759525,1772164239633,-500.0,0.0001312,2]
[406759526,1772164239643,-500.0,0.0001312,2]
[406759527,1772164239653,-500.0,0.0001312,2]
[406759528,1772164239662,-500.0,0.0001312,2]
[406759529,1772164239672,-500.0,0.0001312,2]
[406759530,1772164239681,-500.0,0.0001312,2]
[406759531,1772164239691,-500.0,0.0001312,2]
[406759532,1772164239701,-500.0,0.0001312,2]
[406759533,1772164239712,-500.0,0.0001312,2]
[406759534,1772164239722,-500.0,0.0001312,2]
[406759535,1772164239732,-824.23656534,0.0001312,2]
[406759536,1772164239741,-500.0,0.00013698,2]
[406759537,1772164239751,-500.0,0.00013698,2]
[406759538,1772164239761,-500.0,0.00013698,2]
[406759539,1772164239772,-500.0,0.00013698,2]
[406759540,1772164239782,-500.0,0.00013698,2]
[406759541,1772164239791,-500.0,0.00013698,2]
[406759542,1772164239800,-500.0,0.00013698,2]
[406759543,1772164239809,-500.0,0.00013698,2]
[406759544,1772164239818,-500.0,0.00013698,2]
[406759545,1772164239827,-500.0,0.00013698,2]
[406759546,1772164239836,-500.0,0.00013698,2]
[406759547,1772164239846,-500.0,0.00013698,2]
[406759548,1772164239856,-500.0,0.00013698,2]
[406759549,1772164239865,-500.0,0.00013698,2]
[406759550,1772164239875,-500.0,0.00013698,2]
[406759551,1772164239884,-500.0,0.00013698,2]
[406759552,1772164239893,-500.0,0.00013698,2]
[406759553,1772164239903,-500.0,0.00013698,2]
[406759554,1772164239912,-500.0,0.00013698,2]
[406759555,1772164239921,-500.0,0.00013698,2]
[406759556,1772164239930,-500.0,0.00013698,2]
[406759557,1772164239940,-500.0,0.00013698,2]
[406759558,1772164239950,-500.0,0.00013698,2]
[406759559,1772164239960,-583.84924792,0.00013698,2]
[406759560,1772164239970,-900.0,0.00015068,2]
[406759561,1772164239979,-150.0,0.00015077,2]
[406759562,1772164239988,-504.0,0.0001512,2]
[406759563,1772164239997,-217.23,0.00015713,2]
[406759564,1772164240007,-5181.867067,0.00015713,7]
[406759565,1772164240016,-174.00015664,0.00015773,2]
[406759566,1772164240025,-160.0,0.00015773,2]
[406759567,1772164240034,-373.020815,0.00015922,7]
[406759568,1772164240043,-9999.99,0.00016116,2]
[406759569,1772164240052,-900.0,0.00016438,2]
[406759570,1772164240061,-165.45,0.00016712,2]
[406759571,1772164240070,-23758.109053,0.00017284,7]
[406759572,1772164240079,-308.59204947,0.00017973,2]
[406759573,1772164240088,-150.0,0.00017974,2]
[406759574,1772164240097,-20000.0,0.00018,2]
[406759575,1772164240107,-200.0,0.00018128,2]
[406759576,1772164240116,-200.0,0.00018199,5]
[406759577,1772164240125,-504.0,0.00019175,5]
[406759578,1772164240134,-266.88550582,0.00019199,5]
[406759579,1772164240142,-1586.0,0.00020581,10]
[406759580,1772164240151,-980.0,0.00020581,10]
[406759581,1772164240171,-5556.85,0.0002319,2]
[406759582,1772164240181,-504.0,0.0002323,9]
[406759583,1772164240190,-3497.0,0.0002409,2]
[406759584,1772164240200,-4573.0,0.0002409,2]
[406759585,1772164240210,-219.985,0.0002409,2]
[406759586,1772164240223,-696.67003999,0.000246,2]
[406759587,1772164240233,-1000.0,0.00024658,2]
[406759588,1772164240243,-150.0,0.00024658,2]
[406759589,1772164240252,-176.96965463,0.00025291,20]
[406759590,1772164240262,-500.0,0.0002536,2]
[406759591,1772164240272,-150.0,0.0002589,2]
[406759592,1772164240281,-4573.0,0.0002709,2]
[406759593,1772164240290,-150.0,0.00027185,2]
[406759594,1772164240300,-504.0,0.00027285,12]
[406759595,1772164240309,-201.9525,0.00028185,14]
[406759596,1772164240318,-165.45,0.00028493,2]
[406759597,1772164240328,-150.0,0.00028544,2]
[406759598,1772164240337,-201.9525,0.00028733,14]
[406759599,1772164240347,-26743.0,0.000288,2]
[406759600,1772164240356,-201.9525,0.00029281,14]
[406759601,1772164240367,-5531.0,0.000299,3]
[406759602,1772164240376,-150.0,0.00029971,2]
[406759603,1772164240386,-2477.764,0.0003009,2]
[406759604,1772164240395,-201.95,0.00030651,14]
[406759605,1772164240405,-5531.0,0.00031,5]
[406759606,1772164240415,-504.0,0.0003134,16]
[406759607,1772164240424,-2000.0,0.000314,2]
[406759608,1772164240434,-150.0,0.0003147,2]
[406759609,1772164240443,-2000.0,0.000326,7]
[406759610,1772164240452,-2000.0,0.000329,2]
[406759611,1772164240463,-150.0,0.00033043,2]
[406759612,1772164240472,-1423.64,0.000331,14]
[406759613,1772164240482,-5839.42,0.000331,14]
[406759614,1772164240491,-4467.42,0.000331,14]
[406759615,1772164240501,-277.569,0.000331,34]
[406759616,1772164240510,-1096.534,0.000331,34]
[406759617,1772164240520,-166.66,0.00033771,2]
[406759618,1772164240529,-2000.0,0.000338,7]
[406759619,1772164240539,-183.0,0.00033817,120]
[406759620,1772164240549,-1556.61079216,0.00033931,2]
[406759621,1772164240558,-507.51471813,0.0003397,10]
[406759622,1772164240569,-60095.0,0.00034,120]
[406759623,1772164240579,-160.0,0.00034,120]
[406759624,1772164240588,-294.0915689,0.00034,3]
[406759625,1772164240598,-400.0,0.00034,30]
[406759626,1772164240608,-500.0,0.00034167,14]
[406759627,1772164240617,-2000.8709,0.00034281,2]
[406759628,1772164240627,-10023.6952,0.00034281,2]
[406759630,1772164240636,-800.0,0.00034441,14]
[406759631,1772164240645,-700.0,0.00034441,14]
[406759632,1772164240654,-10000.0,0.0003453,2]
[406759633,1772164240663,-902.2825821,0.0003463,10]
[406759634,1772164240673,-150.0,0.00034696,2]
[406759635,1772164240681,-2942.0,0.00034857,5]
[406759636,1772164240690,-166.66,0.00034885,2]
[406759637,1772164240699,-353272.7682109,0.00034898,2]
[406759638,1772164240708,-13076.619166,0.00034898,2]
[406759639,1772164240717,-199.55728686,0.000349,2]
[406759640,1772164240726,-500.0,0.00034901,30]
[406759641,1772164240736,-500.0,0.00034901,30]
[406759642,1772164240745,-500.0,0.00034901,120]
[406759643,1772164240755,-366.78796296,0.00034901,120]
[406759644,1772164240765,-250.0,0.00034907,30]
[406759645,1772164240776,-250.0,0.00034907,30]
[406759646,1772164240982,-250.0,0.00034907,30]
[406759647,1772164240991,-250.0,0.00034907,30]
[406759648,1772164241000,-200.0,0.00034907,30]
[406759649,1772164241008,-250.0,0.00034907,30]
[406759650,1772164241017,-200.0,0.00034907,30]
[406759651,1772164241030,-250.0,0.00034907,30]
[406759652,1772164241039,-151.0,0.00034907,30]
[406759653,1772164241048,-500.0,0.00034907,30]
[406759654,1772164241058,-200.0,0.00034907,30]
[406759655,1772164241067,-250.0,0.00034907,30]
[406759656,1772164241076,-151.0,0.00034907,30]
[406759657,1772164241085,-500.0,0.00034907,30]
[406759658,1772164241094,-200.0,0.00034907,30]
[406759659,1772164241103,-255.78372187,0.00034907,30]
[406759660,1772164241113,-151.0,0.00034907,30]
[406759661,1772164241122,-500.0,0.00034907,30]
[406759662,1772164241131,-200.0,0.00034907,30]
[406759663,1772164241140,-151.0,0.00034907,30]
[406759664,1772164241149,-500.0,0.00034907,30]
[406759665,1772164241159,-500.0,0.00034907,30]
[406759666,1772164241168,-200.0,0.00034907,30]
[406759667,1772164241177,-151.0,0.00034907,30]
[406759668,1772164241186,-500.0,0.00034907,30]
[406759669,1772164241195,-500.0,0.00034907,30]
[406759670,1772164241205,-200.0,0.00034907,30]
[406759671,1772164241214,-151.0,0.00034907,30]
[406759672,1772164241227,-500.0,0.00034907,30]
[406759673,1772164241236,-500.0,0.00034907,30]
[406759674,1772164241246,-203.16821777,0.00034907,30]
[406759675,1772164241256,-151.0,0.00034907,30]
[406759676,1772164241266,-500.0,0.00034907,30]
[406759677,1772164241276,-500.0,0.00034907,30]
[406759678,1772164241286,-500.0,0.00034907,30]
[406759679,1772164241295,-151.0,0.00034907,30]
[406759680,1772164241306,-500.0,0.00034907,30]
[406759681,1772164241315,-500.0,0.00034907,30]
[406759682,1772164241325,-500.0,0.00034907,30]
[406759683,1772164241334,-151.0,0.00034907,30]
[406759684,1772164241343,-500.0,0.00034907,30]
[406759685,1772164241353,-500.0,0.00034907,30]
[406759686,1772164241362,-250.0,0.00034907,30]
[406759687,1772164241372,-500.0,0.00034907,30]
[406759688,1772164241382,-151.0,0.00034907,30]
[406759689,1772164241391,-500.0,0.00034907,30]
[406759690,1772164241401,-500.0,0.00034907,30]
[406759691,1772164241411,-250.0,0.00034907,30]
[406759692,1772164241422,-500.0,0.00034907,30]
[406759693,1772164241431,-151.0,0.00034907,30]
[406759694,1772164241441,-500.0,0.00034907,30]
[406759695,1772164241450,-500.0,0.00034907,30]
[406759696,1772164241460,-259.10294064,0.00034907,30]
[406759697,1772164241470,-250.0,0.00034907,30]
[406759698,1772164241479,-500.0,0.00034907,30]
[406759699,1772164241489,-151.0,0.00034907,30]
[406759700,1772164241499,-500.0,0.00034907,30]
[406759701,1772164241509,-500.0,0.00034907,30]
[406759702,1772164241518,-250.0,0.00034907,30]
[406759703,1772164241528,-151.0,0.00034907,30]
[406759704,1772164241537,-500.0,0.00034907,30]
[406759705,1772164241547,-500.0,0.00034907,30]
[406759706,1772164241557,-500.0,0.00034907,30]
[406759707,1772164241566,-250.0,0.00034907,30]
[406759708,1772164241576,-500.0,0.00034907,30]
[406759709,1772164241586,-151.0,0.00034907,30]
[406759710,1772164241595,-500.0,0.00034907,30]
[406759711,1772164241605,-500.0,0.00034907,30]
[406759712,1772164241614,-250.0,0.00034907,30]
[406759713,1772164241624,-500.0,0.00034907,30]
[406759714,1772164241633,-151.0,0.00034907,30]
[406759715,1772164241643,-500.0,0.00034907,30]
[406759716,1772164241653,-500.0,0.00034907,30]
[406759717,1772164241662,-250.0,0.00034907,30]
[406759718,1772164241671,-151.0,0.00034907,30]
[406759719,1772164241680,-500.0,0.00034907,30]
[406759720,1772164241690,-533.8509412,0.00034907,30]
[406759721,1772164241700,-250.0,0.00034907,30]
[406759722,1772164241710,-151.0,0.00034907,30]
[406759723,1772164241720,-500.0,0.00034907,30]
[406759724,1772164241729,-500.0,0.00034907,30]
[406759725,1772164241739,-250.0,0.00034907,30]
[406759726,1772164241748,-151.0,0.00034907,30]
[406759727,1772164241757,-500.0,0.00034907,30]
[406759728,1772164241767,-582.78214508,0.00034907,30]
[406759729,1772164241776,-253.48474784,0.00034907,30]
[406759730,1772164241789,-151.0,0.00034907,30]
[406759731,1772164241799,-500.0,0.00034907,30]
[406759732,1772164241809,-500.0,0.00034907,30]
[406759733,1772164241819,-151.0,0.00034907,30]
[406759734,1772164241829,-500.0,0.00034907,30]
[406759735,1772164241839,-500.0,0.00034907,30]
[406759736,1772164241848,-500.0,0.00034907,30]
[406759737,1772164241858,-518.5,0.00034907,30]
[406759738,1772164241868,-489.74058249,0.00034907,30]
[406759739,1772164241878,-537.6845,0.00034907,30]
[406759740,1772164241888,-557.5788265,0.00034907,30]
[406759741,1772164241898,-578.20924308,0.00034907,30]
[406759742,1772164241907,-599.60298507,0.00034907,30]
[406759743,1772164241917,-621.78829552,0.00034907,30]
[406759744,1772164241927,-644.79446246,0.00034907,30]
[406759745,1772164241937,-494.88778711,0.00034907,30]
[406759746,1772164241946,-620.0,0.00034907,30]
[406759747,1772164241956,-249.88699054,0.00034907,30]
[406759748,1772164241966,-200.0,0.00034908,30]
[406759749,1772164241976,-2000.0,0.00034912,120]
[406759750,1772164241986,-2000.0,0.00034912,120]
[406759751,1772164241996,-2000.0,0.00034912,120]
[406759752,1772164242005,-2000.0,0.00034912,120]
[406759753,1772164242014,-2000.0,0.00034912,120]
[406759754,1772164242023,-2000.0,0.00034912,120]
[406759755,1772164242033,-2000.0,0.00034912,120]
[406759756,1772164242043,-2000.0,0.00034912,120]
[406759757,1772164242052,-2000.0,0.00034912,120]
[406759758,1772164242061,-2000.0,0.00034912,120]
[406759759,1772164242070,-2000.0,0.00034912,120]
[406759760,1772164242080,-2000.0,0.00034912,120]
[406759761,1772164242090,-2000.0,0.00034912,120]
[406759762,1772164242099,-2000.0,0.00034912,120]
[406759763,1772164242108,-2000.0,0.00034912,120]
[406759764,1772164242118,-2000.0,0.00034912,120]
[406759765,1772164242127,-2000.0,0.00034912,120]
[406759766,1772164242137,-2000.0,0.00034912,120]
[406759767,1772164242147,-2000.0,0.00034912,120]
[406759768,1772164242156,-2000.0,0.00034912,120]
[406759769,1772164242166,-2000.0,0.00034912,120]
[406759770,1772164242175,-2000.0,0.00034912,120]
[406759771,1772164242185,-2000.0,0.00034912,120]
[406759772,1772164242195,-2000.0,0.00034912,120]
[406759773,1772164242204,-2000.0,0.00034912,120]
[406759774,1772164242214,-2000.0,0.00034912,120]
[406759775,1772164242230,-2000.0,0.00034912,120]
[406759776,1772164242239,-2000.0,0.00034912,120]
[406759777,1772164242249,-2000.0,0.00034912,120]
[406759778,1772164242259,-2000.0,0.00034912,120]
[406759779,1772164242269,-2000.0,0.00034912,120]
[406759780,1772164242279,-2000.0,0.00034912,120]
[406759781,1772164242288,-2000.0,0.00034912,120]
[406759782,1772164242300,-2000.0,0.00034912,120]
[406759783,1772164242310,-2000.0,0.00034912,120]
[406759784,1772164242320,-2000.0,0.00034912,120]
[406759787,1772164242330,-2000.0,0.00034912,120]
[406759788,1772164242340,-2000.0,0.00034912,120]
[406759789,1772164242350,-2000.0,0.00034912,120]
[406759790,1772164242360,-2000.0,0.00034912,120]
[406759791,1772164242369,-2000.0,0.00034912,120]
[406759792,1772164242380,-2000.0,0.00034912,120]
[406759793,1772164242390,-2000.0,0.00034912,120]
[406759794,1772164242400,-2000.0,0.00034912,120]
[406759795,1772164242409,-2000.0,0.00034912,120]
[406759796,1772164242420,-2000.0,0.00034912,120]
[406759797,1772164242430,-2000.0,0.00034912,120]
[406759798,1772164242441,-1024.969,0.00034912,120]
[406759799,1772164242450,-171.646,0.00034912,120]
[406759800,1772164242462,-35141.79724202,0.0003498,2]
[406759801,1772164242473,-151.0,0.0003498,2]
[406759802,1772164242482,-500.0,0.00034989,14]
[406759803,1772164242492,-161.0068703,0.00034992,2]
[406759804,1772164242503,-230.35747557,0.00035,30]
[406759805,1772164242512,-250.130295,0.00035,30]
[406759806,1772164242522,-193.42,0.00035,30]
[406759807,1772164242532,-40200.59045561,0.00035,90]
[406759808,1772164242542,-4467.42,0.00035,14]
[406759809,1772164242555,-5839.42,0.00035,14]
[406759810,1772164242565,-174.00015664,0.00035,30]
[406759811,1772164242574,-2000.0,0.00035,7]
[406759812,1772164242584,-200.0,0.00035,3]
[406759813,1772164242594,-1000.0,0.00035,120]
[406759814,1772164242604,-1456.68985095,0.00035221,30]
[406759815,1772164242614,-841.42239477,0.00035257,29]
[406759816,1772164242624,-800.0,0.00035263,14]
[406759817,1772164242634,-700.0,0.00035263,14]
[406759818,1772164242644,-1423.64,0.000353,14]
[406759819,1772164242654,-504.0,0.00035395,20]
[406759820,1772164242663,-335.51,0.00035443,2]
[406759821,1772164242672,-605.23,0.000355,120]
[406759822,1772164242682,-159.70078536,0.00035589,30]
[406759823,1772164242693,-304.82272155,0.0003561,120]
[406759824,1772164242703,-544.21519612,0.00035616,5]
[406759825,1772164242715,-500.0,0.00035726,14]
[406759826,1772164242725,-350.2144133,0.00035726,14]
[406759827,1772164242735,-500.0,0.00035738,30]
[406759828,1772164242746,-150.0,0.00035765,7]
[406759829,1772164242757,-1034.1174351,0.00035809,7]
[406759830,1772164242767,-500.0,0.00035811,14]
[406759831,1772164242777,-235.38228822,0.00035875,30]
[406759832,1772164242787,-228.58028968,0.00035875,30]
[406759833,1772164242797,-241.08852704,0.00035903,7]
[406759834,1772164242807,-1000.0,0.0003592,2]
[406759835,1772164242817,-1000.0,0.0003592,2]
[406759836,1772164242827,-1000.0,0.0003592,2]
[406759837,1772164242837,-1000.0,0.0003592,2]
[406759838,1772164242846,-1000.0,0.0003592,2]
[406759839,1772164242857,-150.0,0.00035931,7]
[406759840,1772164242866,-1032.87252995,0.00035955,7]
[406759841,1772164242876,-1000.0,0.00035959,2]
[406759842,1772164242886,-1000.0,0.00035959,2]
[406759843,1772164242896,-1000.0,0.00035959,2]
[406759844,1772164242906,-1000.0,0.00035959,2]
[406759845,1772164242916,-1000.0,0.00035959,2]
[406759846,1772164242926,-1000.0,0.00036,120]
[406759847,1772164242936,-176.23,0.00036,120]
[406759848,1772164242946,-4467.42,0.00036,14]
[406759849,1772164242955,-5839.42,0.00036,14]
[406759850,1772164242965,-166.66,0.00036,2]
[406759851,1772164242974,-1508.4033964,0.00036055,30]
[406759852,1772164242984,-1999.0,0.00036082,14]
[406759853,1772164242993,-800.0,0.00036085,14]
[406759854,1772164243002,-700.0,0.00036085,14]
[406759855,1772164243016,-500.0,0.00036085,30]
[406759856,1772164243029,-500.0,0.00036085,30]
[406759857,1772164243043,-500.0,0.00036085,30]
[406759858,1772164243055,-623.42592237,0.00036085,30]
[406759859,1772164243066,-286.55488,0.00036088,30]
[406759860,1772164243077,-5000.0,0.00036103,10]
[406759861,1772164243088,-5000.0,0.00036117,10]
[406759862,1772164243099,-5000.0,0.00036142,10]
[406759863,1772164243111,-767.29,0.00036142,120]
[406759864,1772164243124,-5000.0,0.00036143,10]
[406759865,1772164243136,-2517.99,0.00036171,10]
[406759866,1772164243148,-172.0,0.00036175,120]
[406759867,1772164243161,-2000.0,0.000362,7]
[406759868,1772164243173,-151.0,0.00036205,14]
[406759869,1772164243184,-1657.9,0.00036208,10]
[406759870,1772164243196,-5000.0,0.0003622,10]
[406759871,1772164243207,-3577.25,0.0003622,10]
[406759872,1772164243219,-5000.0,0.00036225,10]
[406759873,1772164243233,-5000.0,0.00036235,10]
[406759874,1772164243246,-1600.0,0.00036236,120]
[406759875,1772164243258,-500.0,0.00036277,2]
[406759876,1772164243271,-500.0,0.00036277,120]
[406759877,1772164243283,-5000.0,0.00036278,10]
[406759878,1772164243299,-5000.0,0.00036278,10]
[406759879,1772164243312,-286.55488,0.00036288,30]
[406759880,1772164243324,-1999.0,0.00036356,14]
[406759881,1772164243336,-1250.5,0.00036368,10]
[406759882,1772164243347,-1313.54,0.00036377,10]
[406759883,1772164243358,-1423.64,0.000364,14]
[406759884,1772164243370,-150.0,0.0003643,2]